[Event "55th Biel Festival MTO 2022"]
[Site "Biel"]
[Date "2022.07.20"]
[Round "7.38"]
[White "Collin Moritz Valentin"]
[Black "Aaron Deepak"]
[Result "0-1"]
[ECO "A90"]
[WhiteElo "2129"]
[BlackElo "2221"]
[Annotator "TA"]
[PlyCount "52"]
[EventDate "2022.07.13"]
[EventType "swiss"]
[EventCountry "SUI"]
[SourceTitle "playchess.com"]
[Source "ChessBase"]
[SourceQuality "1"]
[TimeControl "40/5400+30:1800+30"]

{[%evp 14,52,38,25,25,24,79,66,87,70,99,0,0,0,0,-19,-29,-123,-119,-112,-112,-207,-26,-33,-34,-48,-55,-51,-43,-93,-96,-150,-131,-483,-479,-29990,-29991,-29994,-29995,-29995,-29996]} 1. d4 {[%emt 0:00:04]} e6 {[%emt 0:00:30]} 2. c4 {[%emt 0:00:07]} f5 {[%emt 0:00:00]} 3. Nf3 {[%emt 0:00:18]} Nf6 {[%emt 0:00:00]} 4. g3 {[%emt 0:00:06]} Bb4+ {[%emt 0:00:25]} 5. Nbd2 {[%emt 0:00:12]} O-O {[%emt 0:00:35]} 6. Bg2 {[%emt 0:00:07]} d5 {[%emt 0:01:09]} 7. O-O {[%emt 0:00:52]} c6 {[%emt 0:00:39]} 8. Qc2 {[%emt 0:09:28]} Bd6 {[%emt 0:00:48] A90: Dutch Defence: Miscellaneous and Modern Stonewall (with ...Bd6).} 9. Ne1 {[%emt 0:10:26] [#]} f4 $146 {[%emt 0:04:09]} (9... b6 $11) ({Predecessor:} 9... Ne4 10. Nd3 Nd7 11. Nf3 g5 12. c5 Bc7 13. Nfe5 Nxe5 14. dxe5 b6 15. b4 bxc5 16. bxc5 {½-½ (32) Shishkin,V (2391)-Melnikov,D (2286) St Petersburg 2002}) 10. Nd3 $16 {[%emt 0:04:13]} fxg3 {[%emt 0:01:18] White is slightly better.} 11. hxg3 {[%emt 0:06:09]} Qe8 {[%emt 0:04:08]} 12. Bf3 {[%emt 0:16:02]} (12. Re1 $16) 12... Nbd7 $11 {[%emt 0:02:06]} 13. e4 {[%emt 0:08:13] Threatens to win with e5.} e5 {[%emt 0:05:55]} 14. cxd5 {[%emt 0:03:46]} cxd5 {[%emt 0:00:38]} 15. dxe5 {[%emt 0:01:59]} (15. Re1 $11 {keeps the balance.} exd4 16. Qb3 (16. exd5 Qg6 $11)) 15... Nxe5 $17 {[%emt 0:01:39]} 16. Nxe5 {[%emt 0:02:04]} Bxe5 {[%emt 0:02:48]} 17. exd5 {[%emt 0:01:53] [#]} (17. Qb3 $17) 17... Bg4 $2 {[%emt 0:01:25]} (17... Ng4 $1 $19 {White must now prevent ...Qh5.} 18. d6 Qh5 19. Bxg4 Bxg4 20. Qc4+ Rf7) 18. Bg2 {[%emt 0:06:44]} Qh5 {[%emt 0:06:34] aiming for ...Be2.} 19. Ne4 {[%emt 0:07:51]} Nxe4 {[%emt 0:04:40]} ({Reject} 19... Nxd5 20. Qc5 Nf6 21. Nxf6+ Bxf6 22. Qxh5 Bxh5 23. Be3 $11 (23. Bxb7 Rad8 $11)) 20. Qxe4 {[%emt 0:00:56][%cal Od5d6]} Bd6 $1 {[%emt 0:21:33]} 21. Bd2 {[%emt 0:07:01]} ({Better is} 21. Be3 $15) 21... Rae8 {[%emt 0:01:11]} 22. Qd4 {[%emt 0:01:25] [#]} (22. Qc4 $142) 22... Re2 $1 $40 {[%emt 0:09:14][%mdl 128] Black goes for the king.} 23. Bc3 $2 {[%emt 0:04:37][%mdl 8192] Now White is beyond hope.} (23. Bf4 $17 {nothing else works.} Bxf4 24. gxf4) 23... Rf6 $19 {[%emt 0:02:42][%cal Od6g3] ( -> ...Bxg3!)} 24. Qxa7 {[%emt 0:04:46]} (24. Qd3 $19 Rh6 25. Rfe1) 24... Rh6 {[%emt 0:02:32][%csl Gh6][%cal Rh5h2] Black mates.} 25. Rfe1 {[%emt 0:00:43]} Bf3 {[%emt 0:00:49]} 26. Qa8+ {[%emt 0:01:26]} Bf8 {[%emt 0:00:11] Weighted Error Value: White=0.88/Black=0.20 (precise)} 0-1

[Event "55th Biel Festival MTO 2022"]
[Site "Biel"]
[Date "2022.07.21"]
[Round "8.1"]
[White "Visakh N R"]
[Black "Alekseenko, Kirill"]
[Result "1/2-1/2"]
[ECO "E35"]
[WhiteElo "2503"]
[BlackElo "2708"]
[Annotator "TA"]
[PlyCount "93"]
[EventDate "2022.07.13"]
[EventType "swiss"]
[EventCountry "SUI"]
[SourceTitle "playchess.com"]
[Source "ChessBase"]
[SourceQuality "1"]
[TimeControl "40/5400+30:1800+30"]

{[%evp 12,93,11,13,5,0,0,0,8,0,0,0,0,0,0,0,25,16,11,16,10,19,33,31,36,40,48,42,46,20,23,27,45,58,50,75,74,18,78,93,95,102,138,88,89,53,60,62,70,55,156,67,74,72,84,77,88,80,79,77,78,72,77,80,124,128,93,66,91,89,89,0,0,0,0,0,0,0,0,0,0,0,0,0]} 1. d4 {[%emt 0:00:07]} Nf6 {[%emt 0:00:12]} 2. c4 {[%emt 0:00:04]} e6 {[%emt 0:00:13]} 3. Nc3 {[%emt 0:00:06]} Bb4 {[%emt 0:00:42]} 4. Qc2 {[%emt 0:00:05]} d5 {[%emt 0:01:02]} 5. cxd5 {[%emt 0:00:28]} exd5 {[%emt 0:00:21]} 6. Bg5 {[%emt 0:00:28][%cal Bc1g5,Bg5h4,Bh4g3,Bg3e5][%mdl 32]} h6 {[%emt 0:02:27][%cal Bh7h6,Bh6h5,Bh5h4][%mdl 32]} 7. Bh4 $1 {[%emt 0:00:07] The main line 7.Bh4 scores better than 7.Bxf6.} Nc6 {[%emt 0:01:37] E35: Nimzo-Indian: Classical: 4...d5 5 cxd5 exd5.} 8. e3 {[%emt 0:00:17]} g5 {[%emt 0:01:03]} 9. Bg3 {[%emt 0:00:06]} h5 {[%emt 0:00:53]} 10. Bb5 {[%emt 0:00:12]} h4 {[%emt 0:01:25]} 11. Be5 {[%emt 0:00:06]} O-O {[%emt 0:00:17]} 12. Bxc6 {[%emt 0:09:51]} bxc6 {[%emt 0:00:29]} 13. Nge2 {[%emt 0:10:45]} Ng4 {[%emt 0:45:49] [#]} 14. h3 $146 {[%emt 0:07:21]} ({Predecessor:} 14. a3 Be7 15. h3 Nxe5 16. dxe5 c5 17. O-O-O c6 18. f4 Qd7 19. g3 f5 20. gxh4 gxh4 {1-0 (28) Potapova,M (2257)-Rozman,L (2337) Chess.com INT 2021}) 14... Nxe5 {[%emt 0:03:06]} 15. dxe5 {[%emt 0:00:02]} Qe7 {[%emt 0:02:57]} 16. a3 {[%emt 0:11:35]} Ba5 {[%emt 0:02:46]} 17. O-O {[%emt 0:04:44]} Qxe5 {[%emt 0:02:05]} 18. Nd4 {[%emt 0:00:06]} Bd7 {[%emt 0:08:48]} 19. Na4 {[%emt 0:00:28] Pair of Knights!} Bb6 {[%emt 0:01:24]} 20. Nc5 {[%emt 0:05:10]} Bxc5 {[%emt 0:03:32]} 21. Qxc5 {[%emt 0:00:02]} Qd6 {[%emt 0:01:51]} 22. Rac1 {[%emt 0:01:14][%cal Ba1c1,Bc1c5,Bc5g5][%mdl 32]} Qxc5 {[%emt 0:02:03]} 23. Rxc5 {[%emt 0:00:02]} Rfb8 {[%emt 0:00:27]} 24. b4 {[%emt 0:05:06]} (24. e4 $16) 24... Rb6 {[%emt 0:01:57]} (24... a5 $11 {remains equal.}) 25. e4 {[%emt 0:07:14]} dxe4 {[%emt 0:03:53]} 26. Rxg5+ {[%emt 0:01:14]} Kh7 {[%emt 0:02:33][%cal Oa7a5]} 27. Re1 {[%emt 0:00:33]} ({White should try} 27. Re5) 27... Re8 $16 {[%emt 0:00:46]} 28. Re3 {[%emt 0:09:17]} Kh6 {[%emt 0:02:48] Inhibits Rh5+.} 29. Ra5 {[%emt 0:00:11]} a6 {[%emt 0:00:30]} 30. f3 {[%emt 0:00:14]} exf3 {[%emt 0:04:40]} (30... c5 $1 $14 31. Rxc5 Rd6 32. Nf5+ Bxf5 33. Rxf5 Rd1+ 34. Kf2 (34. Kh2 Rd3 $14) 34... Rd2+ 35. Re2 e3+ 36. Ke1 Red8 37. Rxd2 (37. Rxe3 Kg6 $14) 37... Rxd2) 31. Rxf3 {[%emt 0:00:02]} (31. Rxe8 $16 Bxe8 32. Nxf3) 31... Re4 {[%emt 0:00:47] [#]} 32. Nb3 {[%emt 0:03:07]} Kg6 {[%emt 0:02:15]} 33. Nc5 {[%emt 0:00:51][%csl LRa6,LRd7,LRe4]} Rd4 {[%emt 0:00:05]} 34. Nxa6 {[%emt 0:03:03]} Rb5 {[%emt 0:01:11]} 35. Nc5 {[%emt 0:07:57]} Be6 {[%emt 0:00:03]} 36. Ra8 {[%emt 0:01:17]} Bd5 {[%emt 0:00:04]} 37. Rf2 {[%emt 0:00:10]} Kg7 {[%emt 0:00:53]} 38. Kh2 {[%emt 0:00:53]} Rc4 {[%emt 0:00:55]} 39. Rd2 {[%emt 0:06:09] White is more active.} Rc1 {[%emt 0:00:29]} 40. Rd4 {[%emt 0:00:52]} f5 {[%emt 0:00:25] Against Rg4+} 41. Rd2 {[%emt 0:32:07]} ({White should play} 41. a4 $16 Rb6 42. a5 (42. Rxh4 Rc2 $11)) 41... Ra1 $11 {[%emt 0:08:57] The position is equal.} 42. Ra7 {[%emt 0:00:00]} Kh6 {[%emt 0:04:37]} 43. Ra6 {[%emt 0:00:00]} Rb6 {[%emt 0:02:15]} 44. b5 {[%emt 0:00:00]} Rxa6 {[%emt 0:07:09]} (44... Bc4 $2 45. Rxb6 Bxb5 46. Rb7 $18) 45. Nxa6 {[%emt 0:00:00]} ({Of course not} 45. bxa6 Rxa3 46. Rd4 Ra2 $15) 45... Bc4 {[%emt 0:00:57]} 46. Nxc7 {[%emt 0:00:00] [#] b6 is the strong threat.} cxb5 {[%emt 0:00:06]} 47. Rb2 {[%emt 0:00:00] Weighted Error Value: White=0.12 (very precise) /Black=0.10 (very precise)} 1/2-1/2

[Event "55th Biel Festival MTO 2022"]
[Site "Biel"]
[Date "2022.07.21"]
[Round "8.2"]
[White "Muradli, Mahammad"]
[Black "Motylev, Alexander"]
[Result "1-0"]
[ECO "D43"]
[WhiteElo "2523"]
[BlackElo "2632"]
[Annotator "RC"]
[PlyCount "147"]
[EventDate "2022.07.13"]
[EventType "swiss"]
[EventCountry "SUI"]
[SourceTitle "playchess.com"]
[Source "ChessBase"]
[SourceQuality "1"]
[TimeControl "40/5400+30:1800+30"]

1. d4 {[%emt 0:07:39]} Nf6 {[%emt 0:00:13]} 2. c4 {[%emt 0:00:17]} e6 {[%emt 0:00:06]} 3. Nf3 {[%emt 0:00:06]} d5 {[%emt 0:00:05]} 4. Nc3 {[%emt 0:00:17]} c6 {[%emt 0:00:27]} 5. Bg5 {[%emt 0:00:07]} h6 {[%emt 0:00:12]} 6. Bxf6 {[%emt 0:00:10]} Qxf6 {[%emt 0:00:06]} 7. e3 {[%emt 0:00:12]} g6 {[%emt 0:00:07]} 8. Bd3 {[%emt 0:00:25]} Bg7 {[%emt 0:00:31]} 9. O-O {[%emt 0:00:18]} O-O {[%emt 0:01:32]} 10. e4 {[%emt 0:00:15]} dxc4 {[%emt 0:03:27]} 11. e5 {[%emt 0:02:38]} Qe7 {[%emt 0:00:40]} 12. Bxc4 {[%emt 0:00:07]} Nd7 {[%emt 0:00:13]} 13. Re1 {[%emt 0:00:17]} Rd8 {[%emt 0:01:02]} 14. Qc2 {[%emt 0:00:35]} Nb6 {[%emt 0:05:34]} 15. Ne4 {[%emt 0:22:51]} Nd5 {[%emt 0:02:25]} 16. Bb3 {[%emt 0:06:31]} b6 {[%emt 0:06:10]} 17. Qxc6 {[%emt 0:02:15]} Bb7 {[%emt 0:02:12]} 18. Qc2 {[%emt 0:02:11]} Nb4 {[%emt 0:06:54]} 19. Qd2 {[%emt 0:02:43]} Nc6 {[%emt 0:00:27]} 20. Nd6 {[%emt 0:04:47]} Na5 {[%emt 0:00:16]} 21. Nxb7 {[%emt 0:00:14]} Qxb7 {[%emt 0:00:11]} 22. Bc2 {[%emt 0:00:48]} Rac8 {[%emt 0:00:56]} 23. Be4 {[%emt 0:03:10]} Qd7 {[%emt 0:00:19]} 24. h4 {[%emt 0:06:21]} Qb5 {[%emt 0:07:18]} 25. b3 {[%emt 0:06:11]} Nc6 {[%emt 0:04:54]} 26. Rac1 {[%emt 0:05:02]} Ne7 {[%emt 0:02:04]} 27. Rxc8 {[%emt 0:00:06]} Rxc8 {[%emt 0:00:07]} 28. Rc1 {[%emt 0:00:05]} Rxc1+ {[%emt 0:07:10]} 29. Qxc1 {[%emt 0:00:55]} Qe2 {[%emt 0:00:06]} 30. Qb1 {[%emt 0:00:18]} Qb5 {[%emt 0:04:28]} 31. Qc2 {[%emt 0:02:08]} Qd7 {[%emt 0:00:12]} 32. g3 {[%emt 0:04:32]} Bf8 {[%emt 0:01:15]} 33. Kg2 {[%emt 0:01:56]} Nd5 {[%emt 0:01:12]} 34. a4 {[%emt 0:06:49]} a6 {[%emt 0:05:39]} 35. Nd2 {[%emt 0:10:24]} Nb4 {[%emt 0:07:09]} 36. Qc3 {[%emt 0:00:11]} Na2 {[%emt 0:01:03]} 37. Qe3 {[%emt 0:00:57]} Nb4 {[%emt 0:00:31]} 38. h5 {[%emt 0:02:40]} gxh5 {[%emt 0:00:49]} 39. Qf4 {[%emt 0:00:36]} Qd8 {[%emt 0:11:11]} 40. Nf3 {[%emt 0:00:54]} Bg7 {[%emt 0:06:44]} 41. Qc1 {[%emt 0:01:51]} Qd7 {[%emt 0:04:17]} 42. Kh3 {[%emt 0:07:21]} Qd8 {[%emt 0:12:24]} 43. Kh2 {[%emt 0:03:00]} Bf8 {[%emt 0:14:34]} 44. Kg2 {[%emt 0:01:01]} Qd7 {[%emt 0:01:11]} 45. Qe3 {[%emt 0:05:56]} Kg7 {[%emt 0:11:21]} 46. Ng1 {[%emt 0:01:13]} Be7 {[%emt 0:01:09]} 47. Ne2 {[%emt 0:01:18]} Bg5 {[%emt 0:00:34]} 48. Qf3 {[%emt 0:00:58]} h4 {[%emt 0:01:34]} 49. gxh4 {[%emt 0:00:48]} Bxh4 {[%emt 0:00:02]} 50. Qg4+ {[%emt 0:02:18]} Bg5 {[%emt 0:00:02]} 51. f4 {[%emt 0:00:29]} Nd5 {[%emt 0:00:06]} 52. Bxd5 {[%emt 0:00:29]} Qxd5+ {[%emt 0:00:02]} 53. Kf2 {[%emt 0:07:22]} Qe4 {[%emt 0:01:08]} 54. Qg3 {[%emt 0:01:28]} Qf5 {[%emt 0:00:44]} 55. Ke3 {[%emt 0:00:46]} Qc2 {[%emt 0:00:42]} 56. fxg5 {[%emt 0:00:09]} Qxb3+ {[%emt 0:00:29]} 57. Kf2 {[%emt 0:00:00]} Qxg3+ {[%emt 0:01:07]} 58. Kxg3 {[%emt 0:00:25]} hxg5 {[%emt 0:00:33]} 59. Kg4 {[%emt 0:01:38]} f6 {[%emt 0:00:48]} 60. Kh5 {[%emt 0:01:50]} b5 {[%emt 0:00:21]} 61. a5 {[%emt 0:00:03]} b4 {[%emt 0:00:18]} 62. Nc1 {[%emt 0:00:02]} Kf7 {[%emt 0:00:25]} 63. Nb3 {[%emt 0:00:05]} Ke7 {[%emt 0:01:33]} 64. Nc5 {[%emt 0:00:03]} Kf7 {[%emt 0:00:35]} 65. exf6 {[%emt 0:01:30]} Kxf6 {[%emt 0:00:24]} 66. Nxa6 {[%emt 0:00:12]} b3 {[%emt 0:00:23]} 67. Nc5 {[%emt 0:00:05]} b2 {[%emt 0:00:32]} 68. Ne4+ {[%emt 0:00:06]} Kf5 {[%emt 0:00:43]} 69. Nd2 {[%emt 0:00:54]} g4 {[%emt 0:00:18]} 70. a6 {[%emt 0:00:04]} g3 {[%emt 0:00:31]} 71. a7 {[%emt 0:00:03]} b1=Q {[%emt 0:00:39]} 72. Nxb1 {[%emt 0:00:06]} g2 {[%emt 0:00:07]} 73. a8=Q {[%emt 0:00:05]} g1=Q {[%emt 0:00:06]} 74. Qf3# {[%emt 0:00:03]} 1-0

[Event "55th Biel Festival MTO 2022"]
[Site "Biel"]
[Date "2022.07.21"]
[Round "8.3"]
[White "Fedoseev Vladimir"]
[Black "Erdos Viktor"]
[Result "1/2-1/2"]
[ECO "D87"]
[WhiteElo "2686"]
[BlackElo "2586"]
[Annotator "TA"]
[PlyCount "59"]
[EventDate "2022.07.13"]
[EventType "swiss"]
[EventCountry "SUI"]
[SourceTitle "playchess.com"]
[Source "ChessBase"]
[SourceQuality "1"]
[TimeControl "40/5400+30:1800+30"]

{[%evp 19,59,11,33,0,0,0,0,0,15,0,12,0,9,0,0,-23,0,-7,-10,-15,-4,-14,-12,-15,-21,-36,-9,0,-10,-10,-8,-8,0,-19,-16,-17,-27,-33,-29,-29,-33,-29]} 1. d4 {[%emt 0:00:08]} Nf6 {[%emt 0:06:11]} 2. c4 {[%emt 0:00:08]} g6 {[%emt 0:00:07]} 3. Nc3 {[%emt 0:00:07]} d5 {[%emt 0:00:05]} 4. cxd5 {[%emt 0:00:09]} Nxd5 {[%emt 0:00:04]} 5. e4 {[%emt 0:00:10]} Nxc3 {[%emt 0:00:06]} 6. bxc3 {[%emt 0:00:08]} Bg7 {[%emt 0:00:06]} 7. Bc4 {[%emt 0:00:08]} c5 {[%emt 0:00:52]} 8. Ne2 {[%emt 0:00:08]} Nc6 {[%emt 0:00:05]} 9. Be3 {[%emt 0:00:09]} O-O {[%emt 0:05:34]} 10. O-O {[%emt 0:00:49]} b6 {[%emt 0:03:58]} 11. Rc1 {[%emt 0:00:41] D87: Exchange Grünfeld: Classical Line: Variations without ...cxd4.} Bb7 {[%emt 0:00:48][%cal Bc8b7,Bb7c6,Bc6d7][%mdl 32]} 12. Bb5 $1 {[%emt 0:00:01][%mdl 4] is now more promising than 12.Qd2.} Rc8 {[%emt 0:07:32]} 13. Bxc6 {[%emt 0:00:12] The position is equal.} Bxc6 {[%emt 0:04:33]} 14. d5 {[%emt 0:00:08]} Bd7 {[%emt 0:00:46]} 15. Qd2 {[%emt 0:10:25]} e6 {[%emt 0:01:34] [#]} 16. Nf4 $146 {[%emt 0:04:00]} ({Predecessor:} 16. Rfe1 Re8 17. Bg5 Qc7 18. h4 exd5 19. exd5 Qd6 20. Ng3 f5 21. Bf4 Qf6 22. Nf1 Rxe1 23. Rxe1 Qxc3 24. Qxc3 Bxc3 {½-½ (32) Tauber,H (2514)-Bokar,J (2527) ICCF email 2019}) 16... Re8 {[%emt 0:06:09]} 17. Rfe1 {[%emt 0:05:37]} e5 {[%emt 0:04:31]} 18. Nd3 {[%emt 0:01:17]} c4 {[%emt 0:00:06]} 19. Nb4 {[%emt 0:03:08]} a5 {[%emt 0:00:14]} 20. Nc2 {[%emt 0:00:07]} b5 {[%emt 0:07:24]} 21. Rb1 {[%emt 0:01:02][%cal Oa2a4]} Bf8 {[%emt 0:04:51][%cal Bg7f8,Bf8d6,Bd6e5][%mdl 32]} 22. f4 {[%emt 0:07:31]} Bd6 {[%emt 0:15:16]} 23. fxe5 {[%emt 0:05:57]} Bxe5 {[%emt 0:00:36] [#] aiming for ...Qh4.} 24. Bd4 {[%emt 0:00:18]} Qh4 {[%emt 0:02:36]} 25. g3 {[%emt 0:04:13]} Qe7 {[%emt 0:01:49]} 26. Bxe5 {[%emt 0:05:16]} Qxe5 {[%emt 0:00:04]} 27. Nd4 {[%emt 0:00:24]} b4 {[%emt 0:04:18]} 28. cxb4 {[%emt 0:00:54]} c3 {[%emt 0:00:03]} 29. Qd3 {[%emt 0:06:56]} f5 {[%emt 0:03:02][%cal Rf5e4][%mdl 1024] Black has compensation.} 30. Nc6 $1 {[%emt 0:10:46] Weighted Error Value: White=0.06 (flawless) /Black=0.04 (flawless)} ({Much weaker is} 30. bxa5 fxe4 31. Qe3 Qxd5 $17) 1/2-1/2

[Event "55th Biel Festival MTO 2022"]
[Site "Biel"]
[Date "2022.07.21"]
[Round "8.4"]
[White "Sargsyan Shant"]
[Black "Bharath Subramaniyam H"]
[Result "1-0"]
[ECO "D50"]
[WhiteElo "2661"]
[BlackElo "2479"]
[Annotator "ChessBase"]
[PlyCount "79"]
[EventDate "2022.07.13"]
[EventType "swiss"]
[EventCountry "SUI"]
[SourceTitle "playchess.com"]
[Source "ChessBase"]
[SourceQuality "1"]
[TimeControl "40/5400+30:1800+30"]

1. d4 {[%emt 0:04:59]} d5 {[%emt 0:00:15]} 2. c4 {[%emt 0:00:17]} e6 {[%emt 0:00:07]} 3. Nf3 {[%emt 0:00:23]} Nf6 {[%emt 0:00:07]} 4. Nc3 {[%emt 0:00:16]} c5 {[%emt 0:00:07]} 5. cxd5 {[%emt 0:01:39]} cxd4 {[%emt 0:00:07]} 6. Qxd4 {[%emt 0:00:55]} exd5 {[%emt 0:00:07]} 7. Bg5 {[%emt 0:00:12]} Be7 {[%emt 0:00:07]} 8. e3 {[%emt 0:00:21]} O-O {[%emt 0:00:09]} 9. Bb5 {[%emt 0:01:44]} h6 {[%emt 0:14:51]} 10. Bh4 {[%emt 0:00:48]} Nc6 {[%emt 0:05:52]} 11. Qa4 {[%emt 0:02:06]} Ne4 {[%emt 0:26:00]} 12. Bxe7 {[%emt 0:16:23]} Nxe7 {[%emt 0:00:25]} 13. Rc1 {[%emt 0:11:57]} Qb6 {[%emt 0:07:29]} 14. O-O {[%emt 0:09:06]} Nxc3 {[%emt 0:11:14]} 15. Rxc3 {[%emt 0:00:33]} Bf5 {[%emt 0:03:52]} 16. Nd4 {[%emt 0:02:05]} Be4 {[%emt 0:03:54]} 17. Bd7 {[%emt 0:11:02]} Rfd8 {[%emt 0:08:22]} 18. b3 {[%emt 0:06:04]} Ng6 {[%emt 0:03:00]} 19. Bh3 {[%emt 0:01:54]} Ne5 {[%emt 0:01:26]} 20. f3 {[%emt 0:01:22]} Bh7 {[%emt 0:00:51]} 21. Rd1 {[%emt 0:01:21]} Rd6 {[%emt 0:05:41]} 22. Qb5 {[%emt 0:01:43]} Rad8 {[%emt 0:03:24]} 23. Qxb6 {[%emt 0:01:13]} Rxb6 {[%emt 0:00:02]} 24. Rc7 {[%emt 0:00:18]} Kf8 {[%emt 0:01:41]} 25. Bc8 {[%emt 0:01:23]} Ra6 {[%emt 0:02:51]} 26. Rd2 {[%emt 0:03:44]} Bb1 {[%emt 0:00:20]} 27. a4 {[%emt 0:00:28]} Bh7 {[%emt 0:00:55]} 28. Bxb7 {[%emt 0:00:19]} Rb6 {[%emt 0:00:06]} 29. a5 {[%emt 0:01:05]} Rbd6 {[%emt 0:00:59]} 30. Nb5 {[%emt 0:02:15]} R6d7 {[%emt 0:00:27]} 31. Rxd7 {[%emt 0:02:28]} Rxd7 {[%emt 0:00:02]} 32. Bc8 {[%emt 0:00:13]} Re7 {[%emt 0:00:13]} 33. Rxd5 {[%emt 0:02:37]} Nc6 {[%emt 0:00:02]} 34. e4 {[%emt 0:01:20]} f5 {[%emt 0:01:34]} 35. Bxf5 {[%emt 0:00:30]} Bg8 {[%emt 0:00:39]} 36. Rc5 {[%emt 0:00:23]} Nxa5 {[%emt 0:00:14]} 37. b4 {[%emt 0:00:08]} Nb3 {[%emt 0:00:32]} 38. Rc8+ {[%emt 0:00:42]} Re8 {[%emt 0:00:05]} 39. Nxa7 {[%emt 0:00:11]} Nd4 {[%emt 0:00:07]} 40. b5 {[%emt 0:01:37]} 1-0

[Event "55th Biel Festival MTO 2022"]
[Site "Biel"]
[Date "2022.07.21"]
[Round "8.5"]
[White "Sethuraman, S.P."]
[Black "Aryan Chopra"]
[Result "1-0"]
[ECO "E20"]
[WhiteElo "2623"]
[BlackElo "2610"]
[Annotator "TA"]
[PlyCount "99"]
[EventDate "2022.07.13"]
[EventType "swiss"]
[EventCountry "SUI"]
[SourceTitle "playchess.com"]
[Source "ChessBase"]
[SourceQuality "1"]
[TimeControl "40/5400+30:1800+30"]

{[%evp 15,99,-41,-33,-31,-48,-33,-26,-24,-9,-13,0,-4,0,0,71,74,50,52,54,56,129,72,64,69,71,70,72,68,62,66,107,109,227,234,236,237,318,310,379,293,281,210,385,354,463,453,590,590,618,604,684,340,329,339,322,335,339,322,322,330,458,450,443,437,427,268,269,0,417,287,285,314,301,309,302,276,299,307,312,312,299,299,675,667,641,621]} 1. d4 {[%emt 0:01:25]} Nf6 {[%emt 0:00:06]} 2. c4 {[%emt 0:00:07]} e6 {[%emt 0:00:05]} 3. Nf3 {[%emt 0:00:07]} d5 {[%emt 0:00:15]} 4. g3 {[%emt 0:01:20]} dxc4 {[%emt 0:00:19]} 5. Bg2 {[%emt 0:00:13]} Bb4+ {[%emt 0:00:13]} 6. Nc3 {[%emt 0:00:24]} O-O {[%emt 0:04:33]} 7. O-O {[%emt 0:00:24]} Nc6 {[%emt 0:05:49]} 8. Re1 {[%emt 0:00:06]} Rb8 {[%emt 0:05:57]} 9. e4 {[%emt 0:00:39] E20: Nimzo-Indian: 4 g3 and 4 f3.} b5 {[%emt 0:04:03]} 10. a3 {[%emt 0:12:32]} Be7 {[%emt 0:02:13]} 11. Bf4 {[%emt 0:00:27] Black has an edge.} Na5 {[%emt 0:16:01]} 12. Qc2 {[%emt 0:12:40]} Nh5 {[%emt 0:11:21]} 13. Be3 {[%emt 0:01:50] [#]} Nf6 $146 {[%emt 0:07:06] Against d5} ({Predecessor:} 13... f5 14. Ne5 f4 15. gxf4 Nxf4 16. Bxf4 Rxf4 17. Rad1 c5 18. d5 Qc7 19. Nf3 b4 {½-½ (50) Rechner,K (2011)-Keller,K (2139) Germany 2012}) 14. Rad1 {[%emt 0:02:34]} Bb7 {[%emt 0:00:07] Against d5} (14... a6 $11 {remains equal.}) 15. d5 $1 $16 {[%emt 0:17:13]} exd5 {[%emt 0:00:15]} 16. Bxa7 {[%emt 0:00:51]} Ra8 {[%emt 0:03:35]} 17. Bd4 {[%emt 0:01:49]} c6 {[%emt 0:05:06]} (17... c5 $14 18. Bxf6 Bxf6) 18. Bxf6 {[%emt 0:01:32] White is more active.} ({White should try} 18. exd5 Nxd5 19. Ne5) 18... Bxf6 {[%emt 0:00:15]} 19. exd5 {[%emt 0:00:07]} cxd5 {[%emt 0:04:39] [#]} 20. Nxd5 $1 {[%emt 0:00:08]} Bxd5 {[%emt 0:01:00] [#]} 21. Ng5 $1 {[%emt 0:00:35][%mdl 64] Decoy} Bxg5 {[%emt 0:10:31]} 22. Rxd5 {[%emt 0:00:37]} Qb6 {[%emt 0:00:16] Hoping for ...Bf6.} 23. Rxg5 {[%emt 0:00:39]} Rae8 {[%emt 0:00:03]} (23... h6 $16 {was necessary.} 24. Bxa8 hxg5) 24. Rxe8 $40 {[%emt 0:07:58][%mdl 128] Black is in trouble.} Rxe8 {[%emt 0:01:01] [#]} 25. a4 $1 {[%emt 0:03:26][%cal Ba3a4,Ba4a5,Ba5a6][%mdl 32]} Qd8 {[%emt 0:11:24]} 26. Rxb5 {[%emt 0:04:56] aiming for Bd5.} Re1+ {[%emt 0:00:04]} 27. Bf1 {[%emt 0:00:08]} h6 {[%emt 0:00:11]} 28. Qf5 {[%emt 0:06:10]} ({Wrong is} 28. Qc3 $2 {[#]} Qd1 $1 29. Kg2 (29. Rxa5 $2 Rxf1+ 30. Kg2 Rg1+ 31. Kh3 Qd7+ 32. Kh4 Rg2 $19) 29... Rxf1 $19) 28... Nb3 {[%emt 0:02:08]} (28... g6 {is a better defense.} 29. Qd5 Qxd5 30. Rxd5 Nb7) 29. Rd5 {[%emt 0:03:00]} Qe8 {[%emt 0:01:20]} 30. a5 {[%emt 0:00:24]} Ra1 {[%emt 0:02:02]} 31. a6 {[%emt 0:05:07]} Kf8 {[%emt 0:01:22]} 32. Kg2 {[%emt 0:03:40]} Qc6 {[%emt 0:00:54]} 33. Qd7 {[%emt 0:04:25]} (33. Qe4 $142 {White threatens Rd8+ and mate.} Qa8 34. Qxc4 (34. Bxc4 Nd2 $18)) 33... Qxd7 {[%emt 0:01:41]} 34. Rxd7 {[%emt 0:00:06][%mdl 4096] Endgame KRB-KRN} Nc5 {[%emt 0:00:06]} 35. Rc7 {[%emt 0:00:44]} Nxa6 {[%emt 0:00:12]} 36. Rc8+ {[%emt 0:03:40]} ({Don't play} 36. Rxc4 Ke7 37. Rc8 Nb4 38. Rc7+ Kf8 $18) 36... Ke7 {[%emt 0:00:01]} 37. Bxc4 {[%emt 0:00:07] Threatens to win with Ra8.} Ra4 {[%emt 0:00:19]} 38. b3 {[%emt 0:00:38][%cal Bb2b3,Bb3b4,Bb4b5][%mdl 32]} Ra2 {[%emt 0:00:04]} 39. b4 {[%emt 0:05:39]} Ra4 {[%emt 0:00:14]} 40. Bb5 {[%emt 0:00:49]} Ra2 {[%emt 0:00:08]} 41. Bc4 {[%emt 0:07:07]} (41. Re8+ $142 Kd6 42. Bc4) 41... Ra4 $1 {[%emt 0:00:05]} 42. b5 {[%emt 0:00:11]} Nb8 {[%emt 0:01:21]} 43. Bxf7 {[%emt 0:02:38]} ({Not} 43. Rxb8 Rxc4 44. b6 Rc3 $16) 43... Nd7 {[%emt 0:00:26]} 44. Be8 {[%emt 0:04:41]} Ne5 {[%emt 0:00:18]} 45. Bc6 {[%emt 0:00:33]} Rb4 {[%emt 0:00:20]} 46. f4 {[%emt 0:02:48]} Rb2+ {[%emt 0:00:37]} 47. Kh3 {[%emt 0:00:20]} Nc4 {[%emt 0:00:12]} 48. Re8+ {[%emt 0:00:56]} Kf6 $2 {[%emt 0:00:10]} (48... Kf7 49. Rd8 Kf6 50. Rf8+ Ke7 51. Re8+ Kf7) 49. Bd5 {[%emt 0:00:25]} Nd2 {[%emt 0:00:28]} 50. Re2 {[%emt 0:00:38] Weighted Error Value: White=0.25 (precise) /Black=0.37} 1-0